fUST/lending_fUST_20250124
["ID","MTS","AMOUNT","RATE_DAILY","PERIOD"]
[350138834,1737649632895,-500.0,0.00019498,3]
[350138835,1737649632921,-500.0,0.00019498,3]
[350138836,1737649632945,-500.38770927,0.00019498,3]
[350138837,1737649632969,-500.0,0.00019498,3]
[350138838,1737649632992,-502.55323201,0.00019498,3]
[350138839,1737649633016,-500.0,0.00019498,3]
[350138840,1737649633039,-500.0,0.00019498,3]
[350138841,1737649633061,-500.0,0.00019498,3]
[350138842,1737649633084,-500.0,0.00019498,3]
[350138843,1737649633114,-500.0,0.00019498,3]
[350138844,1737649633137,-501.91014212,0.00019498,3]
[350138845,1737649633162,-500.0,0.00019498,3]
[350138846,1737649633187,-500.0,0.00019498,3]
[350138847,1737649633209,-500.0,0.00019498,3]
[350138848,1737649633237,-500.0,0.00019498,3]
[350138849,1737649633261,-500.0,0.00019498,3]
[350138850,1737649633286,-500.0,0.00019498,3]
[350138851,1737649633309,-500.0,0.00019498,3]
[350138852,1737649633333,-156.56,0.00019498,2]
[350138853,1737649633361,-500.0,0.00019499,3]
[350138854,1737649633544,-500.0,0.00019499,3]
[350138855,1737649633574,-563.69,0.000195,2]
[350138856,1737649633600,-521.19884162,0.00019563,3]
[350138857,1737649633623,-511.62838714,0.00019563,3]
[350138858,1737649633646,-500.0,0.00019563,3]
[350138859,1737649633668,-500.0,0.00019563,3]
[350138860,1737649633691,-500.0,0.00019563,3]
[350138861,1737649633714,-500.0,0.00019563,3]
[350138862,1737649633739,-500.0,0.00019563,3]
[350138863,1737649633761,-500.0,0.00019563,3]
[350138864,1737649633783,-500.0,0.00019563,3]
[350138865,1737649633804,-500.0,0.00019563,3]
[350138866,1737649633828,-622.46544516,0.00019564,3]
[350138867,1737649633852,-500.0,0.00019564,3]
[350138868,1737649633875,-500.0,0.00019564,3]
[350138869,1737649633897,-268.517,0.00019633,2]
[350138870,1737649633918,-500.0,0.00019635,3]
[350138871,1737649633941,-500.0,0.00019635,3]
[350138872,1737649633964,-500.0,0.00019635,3]
[350138873,1737649633986,-369.41,0.00019635,3]
[350138874,1737649634009,-154.31,0.00019635,3]
[350138875,1737649634038,-325.89686559,0.00019635,3]
[350138877,1737649710890,160.0,0.00023918,120]
[350138878,1737649717608,150.0,2.75e-05,120]
[350138920,1737649832928,2280.8,0.00024,120]
[350139002,1737649836124,-442.45914862,0.000189,2]
[350139004,1737649836134,-1085.80045066,0.00019,2]
[350139006,1737649836143,-178.84,0.00019497,3]
[350139008,1737649836152,-500.0,0.00019497,3]
[350139010,1737649836161,-300.0,0.00019497,2]
[350139012,1737649836170,-500.0,0.00019497,3]
[350139014,1737649836179,-500.0,0.00019498,3]
[350139016,1737649836189,-182.48274958,0.00019498,3]
[350139019,1737649836201,-317.51725042,0.00019498,3]
[350139021,1737649836210,-500.0,0.00019498,3]
[350139023,1737649836219,-138.98035353,0.00019498,3]
[350139025,1737649836232,-130.09964647,0.00019498,3]
[350139027,1737649836242,-500.0,0.00019498,3]
[350139029,1737649836252,-500.0,0.00019498,3]
[350139031,1737649836261,-609.21313441,0.00019498,3]
[350139033,1737649836271,-507.32,0.000196,2]
[350139035,1737649836280,-594.43,0.00019634,3]
[350139037,1737649836291,-500.0,0.00019634,3]
[350139039,1737649836300,-500.0,0.00019635,3]
[350139041,1737649836309,-500.0,0.00019635,3]
[350139043,1737649836318,-189.29165715,0.00019635,3]
[350139046,1737649836330,-310.70834285,0.00019635,3]
[350139048,1737649836339,-500.0,0.00019635,3]
[350139050,1737649836348,-500.0,0.00019635,3]
[350139052,1737649836358,-589.12,0.00019635,3]
[350139054,1737649836367,-505.15296237,0.00019635,3]
[350139056,1737649836376,-500.0,0.00019635,3]
[350139058,1737649836385,-500.0,0.00019635,3]
[350139060,1737649836394,-500.0,0.00019635,3]
[350139062,1737649836403,-500.0,0.00019635,3]
[350139064,1737649836412,-500.0,0.00019771,3]
[350139065,1737649836421,-500.0,0.00019772,3]
[350139067,1737649836430,-222.61,0.00019772,3]
[350139069,1737649836439,-500.0,0.00019772,3]
[350139071,1737649836449,-500.0,0.00019772,3]
[350139073,1737649836457,-500.0,0.00019772,3]
[350139075,1737649836467,-500.0,0.00019772,3]
[350139077,1737649836476,-500.0,0.00019772,3]
[350139079,1737649836485,-321.56,0.00019908,3]
[350139081,1737649836494,-219.87802591,0.00019909,3]
[350139084,1737649836506,-500.0,0.00019909,3]
[350139085,1737649836516,-500.0,0.00019909,3]
[350139087,1737649836528,-335.86998207,0.00019909,3]
[350139089,1737649836537,-301.17917196,0.00019909,3]
[350139092,1737649836547,-500.0,0.00019909,3]
[350139094,1737649836558,-152.0,0.00019922,2]
[350139096,1737649836567,-160.0,0.0002,2]
[350139098,1737649836576,-160.0,0.0002,3]
[350139100,1737649836586,-500.0,0.00020046,3]
[350139102,1737649836596,-500.0,0.00020046,3]
[350139104,1737649836606,-500.0,0.00020046,3]
[350139106,1737649836615,-399.999999,0.000201,2]
[350139108,1737649836624,-600.0,0.00020164,2]
[350139110,1737649836633,-500.0,0.00020183,3]
[350139112,1737649836643,-500.0,0.00020183,3]
[350139114,1737649836652,-500.0,0.00020183,3]
[350139116,1737649836662,-502.63,0.0002032,3]
[350139118,1737649836671,-500.0,0.0002032,3]
[350139120,1737649836681,-500.0,0.0002032,3]
[350139122,1737649836691,-171.60915741,0.00020356,2]
[350139124,1737649836700,-400.0,0.00020447,2]
[350139126,1737649836709,-500.0,0.00020456,3]
[350139128,1737649836719,-280.00971578,0.00020457,3]
[350139130,1737649836728,-500.0,0.00020457,3]
[350139132,1737649836737,-500.0,0.00020457,3]
[350139134,1737649836746,-160.0,0.00020522,3]
[350139136,1737649836757,-500.0,0.00020594,3]
[350139138,1737649836766,-500.0,0.00020594,3]
[350139139,1737649836775,-2000.0,0.000206,2]
[350139141,1737649836785,-500.0,0.00020731,3]
[350139143,1737649836794,-500.0,0.00020731,3]
[350139145,1737649836803,-500.0,0.00020868,3]
[350139147,1737649836813,-500.0,0.00020868,3]
[350139149,1737649836822,-364.519,0.00021001,2]
[350139151,1737649836832,-500.0,0.00021005,3]
[350139153,1737649836842,-500.0,0.00021005,3]
[350139155,1737649836851,-153.0,0.00021044,2]
[350139157,1737649836860,-153.0,0.00021044,2]
[350139159,1737649836869,-153.0,0.00021044,2]
[350139161,1737649836879,-153.0,0.00021044,2]
[350139163,1737649836887,-153.0,0.00021044,2]
[350139165,1737649836896,-153.0,0.00021044,2]
[350139167,1737649836906,-153.0,0.00021044,2]
[350139169,1737649836915,-153.0,0.00021044,2]
[350139171,1737649836924,-153.0,0.00021044,2]
[350139173,1737649836933,-153.0,0.00021044,2]
[350139175,1737649836943,-153.0,0.00021044,2]
[350139177,1737649836952,-153.0,0.00021044,2]
[350139179,1737649836961,-153.0,0.00021044,2]
[350139181,1737649836971,-153.0,0.00021044,2]
[350139183,1737649836979,-153.0,0.00021044,2]
[350139185,1737649836988,-153.0,0.00021044,2]
[350139187,1737649837000,-1200.0,0.00021121,2]
[350139189,1737649837009,-500.0,0.00021142,3]
[350139191,1737649837019,-500.0,0.00021142,3]
[350139193,1737649837028,-420.0,0.00021241,2]
[350139196,1737649837038,-500.0,0.00021279,3]
[350139198,1737649837048,-500.0,0.00021279,3]
[350139200,1737649837058,-500.0,0.00021416,3]
[350139202,1737649837067,-500.0,0.00021416,3]
[350139204,1737649837077,-171.6091574,0.00021518,2]
[350139206,1737649837087,-500.0,0.00021553,3]
[350139208,1737649837096,-500.0,0.00021553,3]
[350139209,1737649837105,-500.0,0.0002169,3]
[350139211,1737649837114,-500.0,0.0002169,3]
[350139213,1737649837124,-272.86259906,0.00021827,3]
[350139215,1737649837133,-500.0,0.00021827,3]
[350139217,1737649837143,-500.0,0.00021875,3]
[350139219,1737649837152,-500.0,0.00021899,2]
[350139221,1737649837161,-444.33585857,0.00021899,2]
[350139223,1737649837171,-500.0,0.00021899,2]
[350139225,1737649837180,-628.23049795,0.00021899,2]
[350139227,1737649837191,-500.0,0.00021899,2]
[350139229,1737649837200,-500.0,0.00021899,2]
[350139231,1737649837209,-500.0,0.00021899,2]
[350139233,1737649837219,-500.0,0.00021899,2]
[350139235,1737649837228,-500.0,0.00021899,2]
[350139237,1737649837238,-500.0,0.00021899,2]
[350139239,1737649837250,-500.0,0.00021899,2]
[350139241,1737649837259,-500.0,0.00021899,2]
[350139244,1737649837269,-500.0,0.00021899,2]
[350139246,1737649837278,-500.0,0.00021899,2]
[350139248,1737649837289,-500.0,0.00021899,2]
[350139250,1737649837299,-500.0,0.00021899,2]
[350139252,1737649837309,-566.92145706,0.00021899,2]
[350139254,1737649837319,-577.37263116,0.00021899,2]
[350139256,1737649837329,-500.0,0.00021899,2]
[350139258,1737649837339,-500.0,0.00021899,2]
[350139260,1737649837349,-500.0,0.00021899,2]
[350139262,1737649837359,-500.0,0.00021899,2]
[350139264,1737649837368,-220.60933678,0.00021899,2]
[350139266,1737649837378,-500.0,0.00021899,2]
[350139268,1737649837387,-500.0,0.00021899,2]
[350139270,1737649837397,-500.0,0.00021899,2]
[350139272,1737649837407,-50822.62676235,0.000219,2]
[350139403,1737649838747,-150.0,0.00021001,2]
[350139405,1737649838761,-53465.1251019,0.000219,2]
[350139608,1737649840493,-45334.12406347,0.000219,2]
[350139610,1737649840505,-505.71897066,0.00021964,3]
[350139612,1737649840517,-152.82,0.000225,31]
[350139614,1737649840526,-152.82,0.000225,31]
[350139616,1737649840535,-152.82,0.000225,31]
[350139618,1737649840544,-171.6091574,0.00022681,2]
[350139620,1737649840555,-316.8,0.0002276,2]
[350139622,1737649840564,-153.0,0.00022849,2]
[350139624,1737649840573,-1000.0,0.00023,23]
[350139626,1737649840582,-587.0,0.00023141,2]
[350139628,1737649840591,-152.82,0.000235,31]
[350139630,1737649840602,-152.82,0.000235,31]
[350139632,1737649840611,-13065.27852718,0.00023561,14]
[350139634,1737649840620,-171.6091574,0.00023843,2]
[350139636,1737649840629,-150.0,0.000239,2]
[350139638,1737649840639,-150.0,0.000239,5]
[350139640,1737649840648,-150.0,0.000239,2]
[350139642,1737649840657,-442.45914862,0.000239,2]
[350139644,1737649840666,-500.0,0.00023941,3]
[350139646,1737649840676,-198.69611544,0.00023942,2]
[350139648,1737649840685,-500.0,0.00023942,2]
[350139650,1737649840694,-619.78540794,0.00023942,2]
[350139652,1737649840703,-4729.35380389,0.00023943,5]
[350139654,1737649840713,-731.76535816,0.00023943,5]
[350139656,1737649840722,-500.0,0.00023943,3]
[350139658,1737649840731,-500.0,0.00023943,3]
[350139660,1737649840740,-500.0,0.00023943,3]
[350139662,1737649840750,-500.0,0.00023943,3]
[350139663,1737649840759,-500.0,0.00023943,3]
[350139665,1737649840769,-500.0,0.00023943,3]
[350139667,1737649840778,-500.0,0.00023943,3]
[350139669,1737649840787,-85258.70028984,0.00023943,61]
[350139672,1737649840798,-514.88943094,0.00023943,61]
[350139674,1737649840810,-262.36471569,0.00023943,61]
[350139676,1737649840821,-20269.63686641,0.00023943,61]
[350140103,1737649844384,-1200.0,0.00023943,2]
[350140105,1737649844394,-79795.6614667,0.00023943,61]
[350140119,1737649844566,-1525.391851,0.00023943,61]
[350140343,1737649846527,-12406.52875086,0.00023943,61]
[350140642,1737649849681,439.6888,0.00024,120]
[350142013,1737649901980,1000.0,0.00024,120]
[350142014,1737650030693,400.0,0.00013973,2]
[350142015,1737650070779,160.0,0.00023305,120]
[350142035,1737650572578,350.0,0.00024,120]
[350142036,1737650580935,3188.9930973,0.0002,20]
[350142037,1737650692185,194.4950552,0.00024,120]
[350142038,1737650844135,-197.00913,0.00017808,2]
[350142039,1737650844157,-295.71847776,0.00019078,2]
[350142040,1737650844179,-295.71847771,0.00019162,2]
[350142041,1737650844201,-1033.1667515,0.00019178,11]
[350142042,1737650844221,-295.71847771,0.00019247,2]
[350142043,1737650844242,-295.71847771,0.00019331,2]
[350142044,1737650844263,-295.71847771,0.00019416,2]
[350142045,1737650844282,-295.71847771,0.000195,2]
[350142046,1737650844305,-637.96,0.000196,2]
[350142047,1737650844334,-300.0,0.000197,8]
[350142048,1737650844363,-591.85767542,0.0001982,2]
[350142049,1737650844392,-300.0,0.00019919,2]
[350142050,1737650844418,-433.95885536,0.0001992,3]
[350142149,1737651032846,-425.11816182,0.000189,2]
[350142151,1737651032856,-160.24442469,0.00019178,2]
[350142156,1737651032894,-6.85575131,0.00019178,2]
[350142158,1737651032903,-723.15,0.000196,2]
[350142160,1737651032913,-166.38375241,0.0001982,2]
[350142162,1737651032923,-300.0,0.00019918,2]
[350142164,1737651032931,-500.0,0.00019919,3]
[350142167,1737651032941,-500.0,0.00019919,3]
[350142170,1737651032950,-506.01513147,0.00019919,3]
[350142172,1737651032959,-503.11,0.00019919,3]
[350142175,1737651032969,-500.0,0.00019919,3]
[350142178,1737651032983,-500.0,0.00019919,3]
[350142182,1737651032993,-500.0,0.00019919,3]
[350142185,1737651033002,-500.0,0.00019919,3]
[350142188,1737651033011,-500.0,0.00019919,3]
[350142191,1737651033024,-500.0,0.00019919,3]
[350142194,1737651033033,-500.0,0.00019919,3]
[350142197,1737651033042,-500.0,0.00019919,3]
[350142200,1737651033052,-500.0,0.00019919,3]
[350142203,1737651033061,-500.0,0.0001992,3]
[350142206,1737651033073,-500.0,0.0001992,3]
[350142209,1737651033083,-322.76139914,0.0001992,3]
[350142212,1737651033092,-500.0,0.0001992,3]
[350142215,1737651033101,-500.0,0.0001992,3]
[350142218,1737651033111,-500.0,0.0001992,3]
[350142221,1737651033120,-507.48053854,0.0001992,3]
[350142224,1737651033130,-500.0,0.0001992,3]
[350142227,1737651033139,-500.0,0.0001992,3]
[350142230,1737651033148,-500.0,0.0001992,3]
[350142232,1737651033157,-500.0,0.0001992,3]
[350142234,1737651033166,-500.0,0.0001992,3]
[350142236,1737651033177,-500.0,0.0001992,3]
[350142239,1737651033186,-500.0,0.0001992,3]
[350142242,1737651033195,-500.0,0.0001992,3]
[350142245,1737651033204,-500.0,0.0001992,3]
[350142248,1737651033214,-500.0,0.0001992,3]
[350142250,1737651033223,-500.0,0.0001992,3]
[350142252,1737651033234,-500.0,0.0001992,3]
[350142253,1737651033243,-500.0,0.0001992,3]
[350142255,1737651033252,-500.0,0.0001992,3]
[350142257,1737651033263,-500.0,0.0001992,3]
[350142260,1737651033274,-500.0,0.0001992,3]
[350142262,1737651033284,-500.0,0.0001992,3]
[350142264,1737651033294,-500.0,0.0001992,3]
[350142266,1737651033303,-500.0,0.0001992,3]
[350142268,1737651033313,-500.0,0.0001992,3]
[350142269,1737651033323,-500.0,0.0001992,3]
[350142272,1737651033332,-500.0,0.0001992,3]
[350142274,1737651033342,-500.0,0.0001992,3]
[350142275,1737651033351,-500.0,0.0001992,3]
[350142277,1737651033360,-500.0,0.0001992,3]
[350142279,1737651033370,-500.0,0.0001992,3]
[350142281,1737651033379,-500.0,0.0001992,3]
[350142283,1737651033388,-500.0,0.0001992,3]
[350142285,1737651033398,-500.0,0.0001992,3]
[350142287,1737651033407,-500.0,0.0001992,3]
[350142289,1737651033416,-505.89393201,0.0001992,3]
[350142291,1737651033426,-500.0,0.0001992,3]
[350142294,1737651033440,-500.0,0.0001992,3]
[350142295,1737651033450,-500.0,0.0001992,3]
[350142297,1737651033460,-500.17889609,0.0001992,3]
[350142299,1737651033469,-500.0,0.0001992,3]
[350142301,1737651033479,-202.04903747,0.0001992,3]
[350142303,1737651033489,-500.0,0.0001992,3]
[350142305,1737651033499,-500.0,0.0001992,3]
[350142307,1737651033508,-500.0,0.0001992,3]
[350142309,1737651033517,-500.0,0.0001992,3]
[350142311,1737651033526,-501.70607079,0.0001992,3]
[350142313,1737651033536,-500.0,0.0001992,3]
[350142315,1737651033545,-500.0,0.0001992,3]
[350142317,1737651033555,-500.0,0.0001992,3]
[350142319,1737651033565,-500.0,0.0001992,3]
[350142321,1737651033575,-519.28659836,0.0001992,3]
[350142323,1737651033585,-500.0,0.0001992,3]
[350142325,1737651033595,-500.0,0.0001992,3]
[350142327,1737651033605,-500.0,0.0001992,2]
[350142329,1737651033615,-500.0,0.0001992,3]
[350142331,1737651033624,-500.0,0.0001992,3]
[350142333,1737651033633,-500.0,0.0001992,3]
[350142335,1737651033643,-500.0,0.0001992,3]
[350142337,1737651033652,-501.64424515,0.0001992,3]
[350142349,1737651033763,-500.0,0.0001992,3]
[350142351,1737651033773,-500.0,0.0001992,3]
[350142353,1737651033783,-504.34910925,0.0001992,3]
[350142355,1737651033793,-513.56861015,0.0001992,3]
[350142357,1737651033803,-507.81873159,0.0001992,3]
[350142359,1737651033812,-500.0,0.0001992,3]
[350142362,1737651033822,-500.0,0.0001992,3]
[350142364,1737651033833,-500.0,0.0001992,3]
[350142365,1737651033842,-500.0,0.0001992,3]
[350142367,1737651033851,-500.0,0.0001992,3]
[350142370,1737651033862,-380.97869241,0.0001992,3]
[350142371,1737651033872,-500.0,0.0001992,3]
[350142373,1737651033882,-500.0,0.0001992,3]
[350142376,1737651033892,-557.42,0.0001992,3]
[350142377,1737651033903,-504.40092924,0.0001992,3]
[350142380,1737651033914,-501.13265787,0.0001992,3]
[350142382,1737651033926,-509.81683209,0.0001992,3]
[350142383,1737651033937,-500.0,0.0001992,3]
[350142385,1737651033947,-500.0,0.0001992,3]
[350142387,1737651033957,-500.0,0.0001992,3]
[350142390,1737651033967,-500.0,0.0001992,3]
[350142391,1737651033976,-500.0,0.0001992,3]
[350142393,1737651033987,-500.0,0.0001992,3]
[350142395,1737651033997,-500.0,0.0001992,3]
[350142398,1737651034007,-500.0,0.0001992,3]
[350142399,1737651034017,-500.0,0.0001992,3]
[350142401,1737651034026,-500.0,0.0001992,2]
[350142403,1737651034035,-512.80334496,0.0001992,3]
[350142405,1737651034045,-500.0,0.0001992,3]
[350142407,1737651034055,-623.85613057,0.0001992,3]
[350142409,1737651034064,-500.0,0.0001992,3]
[350142411,1737651034074,-500.0,0.0001992,3]
[350142413,1737651034084,-500.0,0.0001992,3]
[350142415,1737651034093,-500.0,0.0001992,3]
[350142417,1737651034103,-500.0,0.0001992,3]
[350142419,1737651034112,-200.0,0.0001992,3]
[350142421,1737651034121,-500.0,0.0001992,2]
[350142423,1737651034131,-500.0,0.0001992,3]
[350142425,1737651034140,-500.9892667,0.0001992,3]
[350142427,1737651034149,-500.0,0.0001992,3]
[350142429,1737651034159,-500.0,0.0001992,3]
[350142431,1737651034168,-537.78,0.0001992,3]
[350142433,1737651034178,-500.0,0.0001992,3]
[350142436,1737651034188,-500.0,0.0001992,3]
[350142438,1737651034199,-500.0,0.0001992,3]
[350142440,1737651034208,-500.0,0.0001992,3]
[350142442,1737651034217,-500.0,0.0001992,3]
[350142443,1737651034227,-500.0,0.0001992,3]
[350142445,1737651034236,-500.0,0.0001992,3]
[350142447,1737651034246,-500.0,0.0001992,3]
[350142449,1737651034256,-500.0,0.0001992,3]
[350142451,1737651034266,-500.0,0.0001992,3]
[350142453,1737651034276,-500.0,0.0001992,3]
[350142455,1737651034286,-500.0,0.0001992,3]
[350142457,1737651034296,-500.0,0.0001992,3]
[350142459,1737651034305,-500.0,0.0001992,3]
[350142461,1737651034315,-154.36,0.0001992,2]
[350142463,1737651034325,-500.0,0.0001992,3]
[350142465,1737651034335,-500.0,0.0001992,3]
[350142467,1737651034344,-500.0,0.0001992,3]
[350142469,1737651034354,-500.0,0.0001992,3]
[350142472,1737651034364,-500.0,0.0001992,3]
[350142473,1737651034374,-582.05793864,0.0001992,3]
[350142475,1737651034384,-500.0,0.0001992,3]
[350142478,1737651034394,-500.0,0.0001992,3]
[350142480,1737651034404,-500.0,0.0001992,3]
[350142482,1737651034413,-500.0,0.0001992,3]
[350142484,1737651034424,-496.27072835,0.0001992,3]
[350142486,1737651034433,-449.61573678,0.0001992,3]
[350142488,1737651034443,-500.0,0.0001992,3]
[350142490,1737651034453,-500.0,0.0001992,3]
[350142492,1737651034462,-500.0,0.0001992,3]
[350142494,1737651034471,-500.0,0.0001992,3]
[350142496,1737651034480,-500.80017489,0.0001992,3]
[350142497,1737651034490,-506.21712907,0.0001992,3]
[350142499,1737651034499,-500.0,0.0001992,3]
[350142501,1737651034508,-1204.06,0.0001992,3]
[350142503,1737651034517,-512.78567916,0.0001992,3]
[350142505,1737651034526,-500.0,0.0001992,3]
[350142507,1737651034535,-500.0,0.0001992,3]
[350142509,1737651034545,-500.0,0.0001992,3]
[350142511,1737651034554,-500.0,0.0001992,3]
[350142513,1737651034564,-500.0,0.0001992,3]
[350142515,1737651034574,-500.0,0.0001992,3]
[350142517,1737651034583,-500.0,0.0001992,3]
[350142519,1737651034593,-500.0,0.0001992,3]
[350142521,1737651034603,-501.03617159,0.0001992,3]
[350142523,1737651034612,-500.0,0.0001992,3]
[350142525,1737651034621,-500.94719348,0.0001992,3]
[350142527,1737651034631,-500.0,0.0001992,3]
[350142529,1737651034640,-500.0,0.0001992,3]
[350142531,1737651034650,-500.0,0.0001992,3]
[350142533,1737651034659,-500.0,0.0001992,3]
[350142535,1737651034669,-500.0,0.0001992,3]
[350142537,1737651034679,-500.0,0.0001992,3]
[350142539,1737651034689,-500.0,0.0001992,3]
[350142542,1737651034700,-500.0,0.0001992,3]
[350142544,1737651034710,-500.0,0.0001992,3]
[350142546,1737651034720,-679.26,0.0001992,3]
[350142548,1737651034730,-500.0,0.0001992,3]
[350142550,1737651034741,-501.34056988,0.0001992,3]
[350142552,1737651034751,-596.92747546,0.0001992,3]
[350142554,1737651034760,-500.0,0.0001992,3]
[350142556,1737651034770,-500.0,0.0001992,3]
[350142558,1737651034779,-500.0,0.0001992,3]
[350142560,1737651034789,-500.0,0.0001992,3]
[350142562,1737651034798,-500.0,0.0001992,3]
[350142564,1737651034808,-500.0,0.0001992,3]
[350142565,1737651034817,-500.0,0.0001992,3]
[350142567,1737651034827,-303.05109978,0.0001992,3]
[350142570,1737651034837,-500.0,0.0001992,3]
[350142572,1737651034846,-500.0,0.0001992,3]
[350142574,1737651034856,-500.0,0.0001992,3]
[350142575,1737651034865,-500.0,0.0001992,3]
[350142577,1737651034875,-500.0,0.0001992,3]
[350142579,1737651034885,-506.86884258,0.0001992,2]
[350142581,1737651034895,-500.0,0.0001992,3]
[350142583,1737651034905,-500.0,0.0001992,3]
[350142586,1737651034914,-500.0,0.0001992,3]
[350142588,1737651034924,-500.0,0.0001992,3]
[350142590,1737651034934,-500.0,0.0001992,3]
[350142592,1737651034943,-500.0,0.0001992,3]
[350142594,1737651034953,-500.0,0.0001992,3]
[350142596,1737651034962,-500.0,0.0001992,3]
[350142597,1737651034971,-500.0,0.0001992,3]
[350142600,1737651034987,-500.0,0.0001992,3]
[350142601,1737651034998,-500.0,0.0001992,3]
[350142603,1737651035007,-500.0,0.0001992,3]
[350142605,1737651035017,-501.10621686,0.0001992,3]
[350142607,1737651035026,-500.0,0.0001992,3]
[350142609,1737651035042,-500.0,0.0001992,3]
[350142611,1737651035051,-500.0,0.0001992,3]
[350142613,1737651035060,-546.91099331,0.0001992,3]
[350142615,1737651035070,-500.0,0.0001992,3]
[350142617,1737651035079,-500.0,0.0001992,3]
[350142619,1737651035088,-500.0,0.0001992,3]
[350142621,1737651035098,-500.0,0.0001992,3]
[350142623,1737651035107,-500.0,0.0001992,3]
[350142625,1737651035117,-500.0,0.0001992,3]
[350142627,1737651035126,-557.58,0.0001992,3]
[350142629,1737651035136,-500.0,0.0001992,3]
[350142631,1737651035145,-468.58761885,0.0001992,3]
[350142633,1737651035155,-500.83313617,0.0001992,3]
[350142635,1737651035164,-500.0,0.0001992,3]
[350142637,1737651035174,-500.0,0.0001992,3]
[350142639,1737651035184,-500.0,0.0001992,3]
[350142641,1737651035194,-1576.39,0.0001992,3]
[350142643,1737651035204,-500.0,0.0001992,3]
[350142645,1737651035215,-500.0,0.0001992,3]
[350142647,1737651035225,-500.0,0.0001992,3]
[350142649,1737651035235,-500.0,0.0001992,3]
[350142651,1737651035245,-527.49432431,0.0001992,3]
[350142653,1737651035254,-500.0,0.0001992,3]
[350142655,1737651035263,-500.0,0.0001992,3]
[350142657,1737651035272,-500.0,0.0001992,3]
[350142659,1737651035282,-500.0,0.0001992,3]
[350142661,1737651035291,-500.0,0.0001992,3]
[350142664,1737651035302,-500.0,0.0001992,3]
[350142665,1737651035311,-500.0,0.0001992,3]
[350142667,1737651035321,-500.0,0.0001992,3]
[350142670,1737651035330,-166.3837524,0.00019951,2]
[350142672,1737651035339,-160.0,0.0002,3]
[350142674,1737651035349,-500.0,0.00020042,2]
[350142675,1737651035358,-500.0,0.00020042,2]
[350142676,1737651035367,-500.0,0.00020042,2]
[350142678,1737651035375,-500.0,0.00020042,2]
[350142680,1737651035385,-500.0,0.00020042,2]
[350142682,1737651035394,-500.0,0.00020042,2]
[350142684,1737651035403,-500.0,0.00020042,2]
[350142686,1737651035412,-500.0,0.00020042,2]
[350142688,1737651035422,-500.0,0.00020042,2]
[350142690,1737651035431,-500.0,0.00020042,2]
[350142692,1737651035440,-500.0,0.00020042,2]
[350142694,1737651035449,-504.90831901,0.00020042,2]
[350142696,1737651035458,-500.0,0.00020042,2]
[350142698,1737651035467,-500.0,0.00020042,2]
[350142700,1737651035476,-500.0,0.00020042,2]
[350142702,1737651035486,-500.0,0.00020042,2]